fUST/lending_fUST_20250313
["ID","MTS","AMOUNT","RATE_DAILY","PERIOD"]
[356037621,1741811456298,-2274.13478553,0.00022521,3]
[356037622,1741811456308,-5132.5661977,0.00022552,2]
[356037623,1741811456317,-729.71021274,0.00022703,2]
[356037624,1741811456327,-151.0,0.00022739,7]
[356037625,1741811456336,-151.0,0.00022739,7]
[356037626,1741811456346,-500.0,0.00022739,2]
[356037627,1741811456355,-162.426686,0.00022739,7]
[356037628,1741811456365,-500.0,0.00022739,2]
[356037629,1741811456374,-500.0,0.00022739,2]
[356037630,1741811456384,-500.0,0.00022739,2]
[356037631,1741811456394,-500.0,0.00022739,2]
[356037632,1741811456403,-500.0,0.00022739,2]
[356037633,1741811456417,-1654.51,0.00022739,2]
[356037634,1741811456426,-500.0,0.00022739,2]
[356037635,1741811456435,-151.930361,0.00022739,7]
[356037636,1741811456445,-500.0,0.00022739,2]
[356037637,1741811456455,-209.09023234,0.00022739,2]
[356037638,1741811456464,-500.0,0.00022739,2]
[356037639,1741811456474,-500.0,0.00022739,2]
[356037640,1741811456484,-500.0,0.00022739,2]
[356037641,1741811456493,-500.0,0.00022739,2]
[356037642,1741811456503,-500.0,0.00022739,2]
[356037643,1741811456512,-500.0,0.00022739,2]
[356037644,1741811456522,-500.0,0.00022739,2]
[356037645,1741811456531,-151.0,0.00022739,7]
[356037646,1741811456541,-500.0,0.00022739,2]
[356037647,1741811456550,-151.0,0.00022739,7]
[356037648,1741811456559,-620.5,0.00022739,2]
[356037649,1741811456569,-500.0,0.00022739,2]
[356037650,1741811456578,-539.0,0.00022739,2]
[356037651,1741811456587,-500.0,0.00022739,2]
[356037652,1741811456597,-500.0,0.00022739,2]
[356037653,1741811456606,-232.84285978,0.00022739,2]
[356037654,1741811456615,-500.0,0.00022739,2]
[356037655,1741811456625,-151.0,0.00022739,7]
[356037656,1741811456634,-500.0,0.00022739,2]
[356037657,1741811456645,-360.55628035,0.00022739,2]
[356037658,1741811456654,-151.0,0.00022739,7]
[356037659,1741811456664,-151.0,0.00022739,7]
[356037660,1741811456673,-151.0,0.00022739,7]
[356037661,1741811456682,-500.0,0.00022739,2]
[356037662,1741811456692,-151.0,0.00022739,7]
[356037663,1741811456702,-151.0,0.00022739,7]
[356037664,1741811456711,-500.0,0.00022739,2]
[356037665,1741811456720,-151.0,0.00022739,7]
[356037666,1741811456730,-894.36,0.00022739,2]
[356037667,1741811456739,-500.0,0.00022739,2]
[356037668,1741811456749,-619.25,0.00022739,2]
[356037669,1741811456758,-828.05,0.00022739,2]
[356037670,1741811456767,-151.0,0.00022739,7]
[356037671,1741811456777,-151.0,0.00022739,7]
[356037672,1741811456786,-500.0,0.00022739,2]
[356037673,1741811456795,-500.0,0.00022739,2]
[356037674,1741811456804,-159.574749,0.00022739,7]
[356037675,1741811456814,-500.0,0.00022739,2]
[356037676,1741811456825,-500.0,0.00022739,2]
[356037677,1741811456835,-660.95,0.00022739,2]
[356037678,1741811456845,-500.0,0.00022739,2]
[356037679,1741811456854,-500.0,0.00022739,2]
[356037680,1741811456864,-500.0,0.00022739,2]
[356037681,1741811456875,-500.0,0.00022739,2]
[356037682,1741811456884,-910.13,0.00022739,2]
[356037683,1741811456894,-500.0,0.00022739,2]
[356037684,1741811456903,-500.0,0.00022739,2]
[356037685,1741811456913,-198.136869,0.00022739,7]
[356037686,1741811456922,-500.0,0.00022739,2]
[356037687,1741811456931,-151.0,0.00022739,7]
[356037688,1741811456941,-198.136869,0.00022739,7]
[356037689,1741811456950,-627.96,0.00022739,2]
[356037690,1741811456960,-500.0,0.00022739,2]
[356037691,1741811456969,-500.0,0.00022739,2]
[356037692,1741811456979,-151.0,0.00022739,7]
[356037693,1741811456988,-903.89,0.00022739,2]
[356037694,1741811456998,-851.78,0.00022739,2]
[356037695,1741811457008,-500.0,0.00022739,2]
[356037696,1741811457018,-500.0,0.00022739,2]
[356037697,1741811457027,-151.0,0.00022739,7]
[356037698,1741811457036,-500.0,0.00022739,2]
[356037699,1741811457046,-296.508085,0.00022739,7]
[356037700,1741811457055,-290.5669836,0.00022739,2]
[356037701,1741811457065,-906.73,0.00022739,2]
[356037702,1741811457074,-296.508085,0.00022739,7]
[356037703,1741811457083,-500.0,0.00022739,2]
[356037704,1741811457093,-500.0,0.00022739,2]
[356037705,1741811457102,-1049.73,0.00022739,2]
[356037706,1741811457112,-658.43,0.00022739,2]
[356037707,1741811457122,-913.57,0.00022739,2]
[356037708,1741811457131,-500.0,0.00022739,2]
[356037709,1741811457140,-500.0,0.00022739,2]
[356037710,1741811457150,-162.389569,0.00022739,7]
[356037711,1741811457159,-500.0,0.00022739,2]
[356037712,1741811457168,-500.0,0.00022739,2]
[356037713,1741811457178,-162.389569,0.00022739,7]
[356037714,1741811457187,-500.0,0.00022739,2]
[356037715,1741811457196,-540.35,0.00022739,2]
[356037716,1741811457205,-828.39,0.00022739,2]
[356037717,1741811457265,-151.0,0.00022739,7]
[356037718,1741811457275,-919.45,0.00022739,2]
[356037719,1741811457284,-500.0,0.00022739,2]
[356037720,1741811457294,-590.27136488,0.00022739,2]
[356037721,1741811457303,-810.25,0.00022739,2]
[356037722,1741811457312,-511.02908351,0.00022739,2]
[356037723,1741811457323,-500.0,0.00022739,2]
[356037724,1741811457332,-500.0,0.00022739,2]
[356037725,1741811457341,-500.0,0.00022739,2]
[356037726,1741811457351,-244.09021737,0.00022739,2]
[356037727,1741811457360,-500.0,0.00022739,2]
[356037728,1741811457369,-500.0,0.00022739,2]
[356037729,1741811457378,-500.0,0.00022739,2]
[356037730,1741811457387,-500.0,0.00022739,2]
[356037731,1741811457397,-335.04563205,0.00022739,2]
[356037732,1741811457406,-500.0,0.00022739,2]
[356037733,1741811457415,-500.0,0.00022739,2]
[356037734,1741811457425,-500.0,0.00022739,2]
[356037735,1741811457434,-500.0,0.00022739,2]
[356037736,1741811457444,-500.0,0.00022739,2]
[356037737,1741811457454,-318.376641,0.00022739,7]
[356037738,1741811457463,-500.0,0.00022739,2]
[356037739,1741811457472,-500.0,0.00022739,2]
[356037740,1741811457482,-500.0,0.00022739,5]
[356037741,1741811457491,-500.0,0.00022739,2]
[356037742,1741811457500,-318.376641,0.00022739,7]
[356037743,1741811457510,-500.0,0.00022739,2]
[356037744,1741811457519,-500.0,0.00022739,2]
[356037745,1741811457528,-500.0,0.00022739,2]
[356037746,1741811457537,-500.0,0.00022739,2]
[356037747,1741811457546,-636.86,0.00022739,2]
[356037748,1741811457555,-500.0,0.00022739,2]
[356037749,1741811457564,-500.0,0.00022739,2]
[356037750,1741811457573,-500.0,0.00022739,2]
[356037751,1741811457582,-500.0,0.00022739,2]
[356037752,1741811457591,-500.0,0.00022739,2]
[356037753,1741811457600,-288.05874531,0.00022739,2]
[356037754,1741811458604,-0.4737914,0.00021917,2]
[356037755,1741811458687,-3222.2162086,0.00021917,2]
[356037756,1741811458699,-214.15718757,0.00021917,2]
[356037757,1741811458708,-166.0,0.00022,2]
[356037758,1741811458718,-3222.69,0.00022191,2]
[356037759,1741811458728,-2239.90115651,0.00022465,2]
[356037760,1741811659091,300.0,0.00018,7]
[356037764,1741812143346,10884.52418457,0.000181,2]
[356037779,1741812632266,-300.0,0.00018099,2]
[356037780,1741812632277,-357.96413763,0.00018099,2]
[356037785,1741812638148,-142.03586237,0.00018099,2]
[356037786,1741812638159,-230071.0510746,0.000181,2]
[356037787,1741812638169,-230.91918028,0.000192,2]
[356037788,1741812638179,-571.394424,0.000195,8]
[356037789,1741812638189,-420.0,0.00019746,2]
[356037790,1741812638199,-230.91918027,0.00019854,2]
[356037791,1741812638209,-2431.36371561,0.000199,2]
[356037792,1741812638222,-13607.0,0.0002,2]
[356037793,1741812638231,-2431.36371558,0.00020245,2]
[356037794,1741812638241,-230.91918027,0.00020509,2]
[356037795,1741812638251,-1643.86061931,0.00020521,2]
[356037796,1741812638260,-2431.36371558,0.0002059,2]
[356037797,1741812638270,-266.98788,0.00020773,2]
[356037798,1741812638279,-150.0,0.000209,2]
[356037799,1741812638289,-2431.36371558,0.00020934,2]
[356037800,1741812638298,-230.91918027,0.00021163,2]
[356037801,1741812638308,-2431.36371558,0.00021279,2]
[356037802,1741812638317,-222000.0,0.00021417,2]
[356037803,1741812638326,-7236.93665638,0.00021443,2]
[356037804,1741812638336,-587.0,0.00021543,2]
[356037805,1741812638345,-151.0,0.000216,3]
[356037806,1741812638354,-2431.36371558,0.00021624,3]
[356037807,1741812638363,-151.0,0.000217,3]
[356037808,1741812638373,-799.99,0.000217,2]
[356037809,1741812638383,-800.0,0.000217,2]
[356037810,1741812638392,-1643.86061931,0.00021741,2]
[356037811,1741812638401,-151.0,0.000218,4]
[356037812,1741812638411,-3000.0,0.00021817,2]
[356037813,1741812638420,-174.09255559,0.00021817,2]
[356037814,1741812638430,-230.91918027,0.00021817,2]
[356037815,1741812638439,-484.97552018,0.00021827,2]
[356037816,1741812638448,-355.77730738,0.0002185,2]
[356037817,1741812638457,-151.0,0.000219,3]
[356037818,1741812638467,-1000.0,0.000219,5]
[356037819,1741812638477,-151.0,0.000219,3]
[356037820,1741812638698,-302.0,0.00021904,2]
[356037821,1741812638708,-600.0,0.00021904,2]
[356037822,1741812638718,-523.07321017,0.00021917,2]
[356037823,1741812638728,-500.0,0.00021917,2]
[356037824,1741812638738,-471.5211211,0.00021917,2]
[356037825,1741812638747,-256.46784854,0.00021917,2]
[356037826,1741812638759,-500.0,0.00021917,2]
[356037827,1741812638769,-500.0,0.00021917,2]
[356037828,1741812638778,-500.0,0.00021917,2]
[356037829,1741812638788,-500.0,0.00021917,2]
[356037830,1741812638799,-500.0,0.00021917,2]
[356037831,1741812638808,-500.0,0.00021917,2]
[356037832,1741812638818,-500.0,0.00021917,2]
[356037833,1741812638827,-502.14129635,0.00021917,2]
[356037834,1741812638837,-500.0,0.00021917,2]
[356037835,1741812638847,-500.0,0.00021917,2]
[356037836,1741812638856,-500.0,0.00021917,2]
[356037837,1741812638866,-500.0,0.00021917,2]
[356037838,1741812638876,-500.0,0.00021917,2]
[356037839,1741812638885,-653.19,0.00021917,2]
[356037840,1741812638898,-500.0,0.00021917,2]
[356037841,1741812638908,-500.0,0.00021917,2]
[356037842,1741812638918,-501.83585951,0.00021917,2]
[356037843,1741812638927,-500.0,0.00021917,2]
[356037844,1741812638937,-500.0,0.00021917,2]
[356037845,1741812638947,-940.2,0.00021917,2]
[356037846,1741812638957,-500.0,0.00021917,2]
[356037847,1741812638966,-500.0,0.00021917,2]
[356037848,1741812638976,-500.0,0.00021917,2]
[356037849,1741812638986,-500.0,0.00021917,2]
[356037850,1741812638996,-270.838071,0.00021917,2]
[356037851,1741812639006,-514.86665195,0.00021917,2]
[356037852,1741812639016,-500.0,0.00021917,2]
[356037853,1741812639026,-500.39134433,0.00021917,2]
[356037854,1741812639036,-500.0,0.00021917,2]
[356037855,1741812639046,-500.0,0.00021917,2]
[356037856,1741812639056,-500.0,0.00021917,2]
[356037857,1741812639065,-500.0,0.00021917,2]
[356037858,1741812639075,-500.0,0.00021917,2]
[356037859,1741812639085,-500.0,0.00021917,2]
[356037860,1741812639095,-500.0,0.00021917,2]
[356037861,1741812639105,-500.0,0.00021917,2]
[356037862,1741812639115,-500.0,0.00021917,2]
[356037863,1741812639125,-500.0,0.00021917,2]
[356037864,1741812639135,-1091.73,0.00021917,2]
[356037865,1741812639145,-500.0,0.00021917,2]
[356037866,1741812639156,-500.0,0.00021917,2]
[356037867,1741812639166,-502.9971439,0.00021917,2]
[356037868,1741812639176,-500.0,0.00021917,2]
[356037869,1741812639186,-500.0,0.00021917,2]
[356037870,1741812639196,-500.0,0.00021917,2]
[356037871,1741812639206,-942.93,0.00021917,2]
[356037872,1741812639220,-500.0,0.00021917,2]
[356037873,1741812639230,-500.0,0.00021917,2]
[356037874,1741812639239,-500.0,0.00021917,2]
[356037875,1741812639250,-500.00000001,0.00021917,2]
[356037876,1741812639260,-500.0,0.00021917,2]
[356037877,1741812639270,-549.45826415,0.00021917,2]
[356037878,1741812639279,-500.0,0.00021917,2]
[356037879,1741812639291,-500.0,0.00021917,2]
[356037880,1741812639302,-500.0,0.00021917,2]
[356037881,1741812639311,-500.0,0.00021917,2]
[356037882,1741812639321,-500.0,0.00021917,2]
[356037883,1741812639331,-562.04,0.00021917,2]
[356037884,1741812639341,-500.0,0.00021917,2]
[356037885,1741812639350,-500.0,0.00021917,2]
[356037886,1741812639359,-500.0,0.00021917,2]
[356037887,1741812639369,-500.0,0.00021917,2]
[356037888,1741812639379,-684.79,0.00021917,2]
[356037889,1741812639388,-500.0,0.00021917,2]
[356037890,1741812639398,-500.0,0.00021917,2]
[356037891,1741812639408,-500.0,0.00021917,2]
[356037892,1741812639417,-500.0,0.00021917,2]
[356037893,1741812639427,-500.0,0.00021917,2]
[356037894,1741812639437,-500.0,0.00021917,2]
[356037895,1741812639447,-500.0,0.00021917,2]
[356037896,1741812639456,-500.0,0.00021917,2]
[356037897,1741812639467,-500.0,0.00021917,2]
[356037898,1741812639477,-347.15894934,0.00021917,2]
[356037899,1741812639487,-500.0,0.00021917,2]
[356037900,1741812639496,-500.0,0.00021917,2]
[356037901,1741812639506,-502.26857918,0.00021917,2]
[356037902,1741812639515,-500.0,0.00021917,2]
[356037903,1741812639525,-500.0,0.00021917,2]
[356037904,1741812639536,-514.65951519,0.00021917,2]
[356037905,1741812639546,-500.0,0.00021917,2]
[356037906,1741812639555,-500.0,0.00021917,2]
[356037907,1741812639565,-500.0,0.00021917,2]
[356037908,1741812639574,-500.0,0.00021917,2]
[356037909,1741812639584,-500.0,0.00021917,2]
[356037910,1741812639593,-495.0,0.00021917,2]
[356037911,1741812639603,-500.0,0.00021917,2]
[356037912,1741812639612,-500.0,0.00021917,2]
[356037913,1741812639623,-500.0,0.00021917,2]
[356037914,1741812639633,-500.89211243,0.00021917,2]
[356037915,1741812639643,-500.0,0.00021917,2]
[356037916,1741812639653,-500.0,0.00021917,2]
[356037917,1741812639664,-500.0,0.00021917,2]
[356037918,1741812639673,-500.0,0.00021917,2]
[356037919,1741812639683,-500.0,0.00021917,2]
[356037920,1741812639692,-711.04,0.00021917,2]
[356037921,1741812639702,-711.04,0.00021917,2]
[356037922,1741812639711,-711.04,0.00021917,2]
[356037923,1741812639721,-711.04,0.00021917,2]
[356037924,1741812639730,-500.0,0.00021917,2]
[356037925,1741812639739,-711.04,0.00021917,2]
[356037926,1741812639748,-711.04,0.00021917,2]
[356037927,1741812639758,-711.04,0.00021917,2]
[356037928,1741812639767,-711.04,0.00021917,2]
[356037929,1741812639777,-711.04,0.00021917,2]
[356037930,1741812639786,-711.04,0.00021917,2]
[356037931,1741812639796,-711.04,0.00021917,2]
[356037932,1741812639805,-711.04,0.00021917,2]
[356037933,1741812639815,-711.04,0.00021917,2]
[356037934,1741812639824,-711.04,0.00021917,2]
[356037935,1741812639833,-711.04,0.00021917,2]
[356037936,1741812639843,-711.04,0.00021917,2]
[356037937,1741812639852,-711.04,0.00021917,2]
[356037939,1741812639862,-711.04,0.00021917,2]
[356037941,1741812639871,-711.04,0.00021917,2]
[356037942,1741812639879,-711.04,0.00021917,2]
[356037943,1741812639889,-711.04,0.00021917,2]
[356037944,1741812639898,-711.04,0.00021917,2]
[356037945,1741812639907,-711.04,0.00021917,2]
[356037947,1741812639917,-711.2,0.00021917,2]
[356037948,1741812639927,-500.0,0.00021917,2]
[356037949,1741812639936,-505.49271059,0.00021917,2]
[356037950,1741812639945,-500.0,0.00021917,5]
[356037951,1741812639955,-500.0,0.00021917,2]
[356037952,1741812639964,-500.0,0.00021917,2]
[356037953,1741812639973,-500.0,0.00021917,2]
[356037954,1741812639983,-500.0,0.00021917,2]
[356037955,1741812639992,-500.0,0.00021917,2]
[356037956,1741812640002,-500.0,0.00021917,2]
[356037957,1741812640012,-500.0,0.00021917,2]
[356037959,1741812640022,-400.03262399,0.00021917,2]
[356037960,1741812640031,-500.0,0.00021917,2]
[356037961,1741812640041,-501.29052873,0.00021917,2]
[356037962,1741812640050,-500.0,0.00021917,2]
[356037963,1741812640060,-500.0,0.00021917,2]
[356037964,1741812640070,-504.77159601,0.00021917,2]
[356037965,1741812640079,-500.0,0.00021917,2]
[356037966,1741812640089,-500.0,0.00021917,2]
[356037967,1741812640098,-505.12944844,0.00021917,2]
[356037968,1741812640108,-500.0,0.00021917,2]
[356037969,1741812640118,-506.6040403,0.00021917,2]
[356037971,1741812640127,-845.05,0.00021917,2]
[356037972,1741812640137,-500.0,0.00021917,2]
[356037973,1741812640146,-500.0,0.00021917,2]
[356037974,1741812640155,-586.2877314,0.00021917,2]
[356037975,1741812640164,-500.0,0.00021917,2]
[356037976,1741812640173,-500.0,0.00021917,2]
[356037978,1741812640183,-500.0,0.00021917,2]
[356037979,1741812640192,-502.00304415,0.00021917,2]
[356037980,1741812640202,-500.0,0.00021917,2]
[356037981,1741812640214,-317.08529297,0.00021917,2]
[356037982,1741812640224,-500.0,0.00021917,2]
[356037983,1741812640233,-500.0,0.00021917,2]
[356037985,1741812640243,-204.1440205,0.00021917,2]
[356037986,1741812640254,-500.0,0.00021917,2]
[356037987,1741812640264,-500.0,0.00021917,2]
[356037988,1741812640273,-500.0,0.00021917,2]
[356037989,1741812640282,-500.0,0.00021917,2]
[356037990,1741812640292,-500.0,0.00021917,2]
[356037991,1741812640301,-500.0,0.00021917,2]
[356037992,1741812640310,-500.0,0.00021917,2]
[356037993,1741812640319,-363.00187439,0.00021917,2]
[356037994,1741812640328,-860.93,0.00021917,2]
[356037995,1741812640337,-505.95873464,0.00021917,2]
[356037996,1741812640347,-518.95376314,0.00021917,2]
[356037997,1741812640356,-500.0,0.00021917,2]
[356037998,1741812640365,-500.0,0.00021917,2]
[356037999,1741812640374,-500.0,0.00021917,2]
[356038000,1741812640385,-500.0,0.00021917,2]
[356038001,1741812640394,-504.73056009,0.00021917,2]
[356038002,1741812640403,-500.0,0.00021917,2]
[356038003,1741812640413,-500.0,0.00021917,2]
[356038004,1741812640423,-559.31131292,0.00021917,2]
[356038005,1741812640432,-687.2,0.00021917,2]
[356038006,1741812640442,-500.0,0.00021917,2]
[356038007,1741812640451,-500.0,0.00021917,2]
[356038008,1741812640460,-500.0,0.00021917,2]
[356038009,1741812640469,-514.1,0.00021917,2]
[356038010,1741812640479,-512.23505407,0.00021917,2]
[356038011,1741812640488,-929.88,0.00021917,2]
[356038012,1741812640497,-505.44945636,0.00021917,2]
[356038013,1741812640507,-500.0,0.00021917,2]
[356038014,1741812640516,-500.0,0.00021917,2]
[356038015,1741812640525,-500.0,0.00021917,2]
[356038016,1741812640534,-500.0,0.00021917,2]
[356038017,1741812640544,-500.0,0.00021917,2]
[356038018,1741812640553,-946.27,0.00021917,2]
[356038019,1741812640563,-500.0,0.00021917,2]
[356038020,1741812640573,-500.0,0.00021917,2]
[356038021,1741812640585,-500.0,0.00021917,2]
[356038022,1741812640594,-500.0,0.00021917,2]
[356038023,1741812640604,-500.0,0.00021917,2]
[356038024,1741812640614,-500.90790766,0.00021917,2]
[356038025,1741812640623,-500.0,0.00021917,2]
[356038026,1741812640633,-500.0,0.00021917,2]
[356038027,1741812640642,-552.28402071,0.00021917,2]
[356038028,1741812640651,-500.0,0.00021917,2]
[356038029,1741812640661,-500.0,0.00021917,2]
[356038030,1741812640671,-500.0,0.00021917,2]
[356038031,1741812640680,-500.0,0.00021917,2]
[356038032,1741812640689,-500.0,0.00021917,2]
[356038033,1741812640699,-225.70543005,0.00021917,2]
[356038034,1741812640708,-502.8315158,0.00021917,2]
[356038035,1741812640718,-509.3799871,0.00021917,2]
[356038036,1741812640727,-500.0,0.00021917,2]
[356038037,1741812640736,-500.0,0.00021917,2]
[356038038,1741812640745,-500.0,0.00021917,2]
[356038039,1741812640755,-500.0,0.00021917,2]
[356038040,1741812640764,-500.0,0.00021917,2]
[356038041,1741812640773,-500.0,0.00021917,2]
[356038042,1741812640782,-885.6,0.00021917,2]
[356038043,1741812640792,-502.58766362,0.00021917,2]
[356038044,1741812640801,-500.0,0.00021917,2]
[356038045,1741812640810,-421.31979836,0.00021917,2]
[356038046,1741812640819,-500.0,0.00021917,2]
[356038047,1741812640828,-500.0,0.00021917,2]
[356038048,1741812640837,-505.91168468,0.00021917,2]
[356038049,1741812640846,-500.0,0.00021917,2]
[356038050,1741812640855,-500.0,0.00021917,2]
[356038051,1741812640864,-500.0,0.00021917,2]
[356038052,1741812640874,-500.0,0.00021917,2]
[356038053,1741812640883,-500.0,0.00021917,2]
[356038054,1741812640892,-500.0,0.00021917,2]
[356038055,1741812640902,-503.17715585,0.00021917,2]
[356038056,1741812640911,-500.0,0.00021917,2]
[356038057,1741812640920,-500.0,0.00021917,2]
[356038058,1741812640929,-510.64584715,0.00021917,2]
[356038059,1741812640938,-502.55512563,0.00021917,2]
[356038060,1741812640947,-501.08823221,0.00021917,2]
[356038061,1741812640956,-500.0,0.00021917,2]
[356038062,1741812640966,-500.0,0.00021917,2]
[356038063,1741812640976,-500.0,0.00021917,2]
[356038064,1741812640985,-500.0,0.00021917,2]
[356038065,1741812640995,-508.40729306,0.00021917,2]
[356038066,1741812641005,-500.0,0.00021917,2]
[356038067,1741812641014,-501.57721571,0.00021917,2]
[356038068,1741812641023,-500.0,0.00021917,2]
[356038069,1741812641032,-500.0,0.00021917,2]
[356038070,1741812641042,-500.0,0.00021917,2]
[356038071,1741812641051,-500.0,0.00021917,2]
[356038072,1741812641060,-500.0,0.00021917,2]
[356038073,1741812641069,-500.0,0.00021917,2]
[356038074,1741812641079,-500.0,0.00021917,2]
[356038075,1741812641088,-1205.38,0.00021917,2]
[356038076,1741812641097,-500.0,0.00021917,2]
[356038077,1741812641107,-500.0,0.00021917,2]
[356038078,1741812641116,-861.29,0.00021917,2]
[356038079,1741812641125,-504.06902287,0.00021917,2]
[356038080,1741812641135,-517.64,0.00021917,2]
[356038081,1741812641144,-500.0,0.00021917,2]
[356038082,1741812641153,-508.49755987,0.00021917,2]
[356038083,1741812641163,-949.84,0.00021917,2]
[356038084,1741812641172,-500.0,0.00021917,2]
[356038085,1741812641181,-500.0,0.00021917,2]
[356038086,1741812641191,-500.0,0.00021917,2]
[356038087,1741812641200,-502.24818389,0.00021917,2]
[356038088,1741812641213,-500.0,0.00021917,2]
[356038089,1741812641223,-500.0,0.00021917,2]
[356038090,1741812641233,-500.0,0.00021917,2]
[356038091,1741812641242,-955.96,0.00021917,2]
[356038092,1741812641251,-500.0,0.00021917,2]
[356038093,1741812641261,-514.87,0.00021917,2]
[356038094,1741812641270,-500.0,0.00021917,2]
[356038095,1741812641280,-620.10195141,0.00021917,2]
[356038096,1741812641291,-500.0,0.00021917,2]
[356038097,1741812641301,-502.29,0.00021917,2]
[356038098,1741812641310,-500.0,0.00021917,2]
[356038099,1741812641319,-504.85020491,0.00021917,2]
[356038100,1741812641329,-500.0,0.00021917,2]
[356038101,1741812641339,-500.0,0.00021917,2]
[356038102,1741812641348,-500.0,0.00021917,2]
[356038103,1741812641358,-270.48531029,0.00021917,2]
[356038104,1741812641367,-500.0,0.00021917,2]
[356038105,1741812641377,-500.0,0.00021917,2]
[356038106,1741812641387,-500.0,0.00021917,2]
[356038107,1741812641396,-500.0,0.00021917,2]
[356038108,1741812641406,-500.0,0.00021917,2]
[356038109,1741812641416,-420.7765298,0.00021917,2]
[356038110,1741812641425,-500.0,0.00021917,2]
[356038111,1741812641435,-842.43,0.00021917,2]
[356038112,1741812641445,-500.0,0.00021917,2]
[356038113,1741812641455,-500.0,0.00021917,2]
[356038114,1741812641464,-503.50906683,0.00021917,2]
[356038115,1741812641473,-500.0,0.00021917,2]
[356038116,1741812641483,-1009.18,0.00021917,2]
[356038117,1741812641492,-500.0,0.00021917,2]
[356038118,1741812641502,-500.0,0.00021917,2]
[356038119,1741812641512,-500.0,0.00021917,2]
[356038120,1741812641521,-500.0,0.00021917,2]
[356038121,1741812641530,-500.0,0.00021917,2]
[356038122,1741812641540,-500.0,0.00021917,2]
[356038123,1741812641550,-500.0,0.00021917,2]
[356038124,1741812641560,-500.0,0.00021917,2]
[356038125,1741812641570,-546.06,0.00021917,2]
[356038126,1741812641579,-500.0,0.00021917,2]
[356038127,1741812641588,-501.74341373,0.00021917,2]
[356038128,1741812641597,-500.0,0.00021917,2]
[356038129,1741812641607,-506.45226536,0.00021917,2]
[356038130,1741812641616,-500.0,0.00021917,2]
[356038131,1741812641625,-500.0,0.00021917,2]
[356038132,1741812641635,-500.0,0.00021917,2]
[356038133,1741812641644,-500.0,0.00021917,2]
[356038134,1741812641654,-501.96633861,0.00021917,2]
[356038135,1741812641664,-455.76,0.00021917,2]
[356038136,1741812641673,-286.08046567,0.00021917,2]
[356038137,1741812641683,-518.50574985,0.00021917,2]
[356038138,1741812641692,-500.0,0.00021917,2]
[356038139,1741812641702,-500.0,0.00021917,2]
[356038140,1741812641711,-500.0,0.00021917,2]
[356038141,1741812641721,-500.0,0.00021917,2]
[356038142,1741812641730,-500.0,0.00021917,2]
[356038143,1741812641739,-638.37521778,0.00021917,2]
[356038144,1741812641749,-500.0,0.00021917,2]
[356038145,1741812641759,-500.0,0.00021917,2]
[356038146,1741812641767,-500.0,0.00021917,2]
[356038147,1741812641777,-500.0,0.00021917,2]
[356038148,1741812641787,-500.0,0.00021917,2]